{"text_format":"3","workbook":"xlsx","n_sheets":1,"sheets":["PRICING SCHEDULE"],"not_rendered":{"images":1,"defined_names":3},"read":"whole","date_system":"1900"}

{"sheet":"PRICING SCHEDULE","index":0,"n_rows":73,"n_cols":11,"rows_kept":73,"merged":[[2,1,2,2],[3,1,3,2],[4,1,4,2],[13,4,15,4],[13,5,15,5],[17,5,17,7],[19,1,19,2],[20,0,20,2],[69,1,72,2],[69,3,69,4],[69,5,69,6],[70,3,70,4],[71,3,71,4],[71,5,71,6],[72,3,72,4],[72,5,72,6]]}
[]
[]
["RFx No","RFB 3171-2025"]
["RFx Title","Supply and delivery of CISCO LAN Infrastructure equipment with CISCO support for a period of five (5) years for the Western Cape Government (WCG), Department of Health and Wellness (Acute Psychiatric units and Emergency Centres)"]
["Bidder Name "]
[]
["1. INSTRUCTION FOR COMPLETING THE PRICING SCHEDULE"]
["(a)  THIS PRICING SCHEDULE MUST BE SUBMITTED SEPARATELY FROM THE TECHNICAL RESPONSE, failing which the BID may be DISQUALIFIED."]
["(b)  Bidder must complete/enter YELLOW cells only"]
["(c)  Unit and Line prices must be VAT EXCLUSIVE and in South African Rand (ZAR) currency."]
["(d) The price must include all cost to deliver the goods or render the service, including all applicable taxes, duty fees, logistics/delivery, storage, labour, overtime and subsistance and travel"]
["(e)  Prices that are dependent on Rate of Exchange (ROE) must use ROE indicated below, then enter in Column \"Forex %\" the percentage of the price that is ROE dependent (0% means the price is not ROE dependent)"]
[null,"Foreign currency","South African Rand (ZAR) exchange rate "]
[null,"1 US Dollar",{"v":17.19,"d":"R17.19"},null,"Mark with an X, which ROE is applicable"]
[null,"1 Euro",{"v":19.89,"d":"R19.89"}]
[null,"1 Pound (UK)",{"v":22.65,"d":"R22.65"}]
[]
[]
["Item No","Part Number","Goods/Service description",null,"Forex %","Qty ","Unit Price \n(Excl VAT)","Line Price Y1","Forex Price portion","BRAND / MODEL (if applicable)","Price clarification comment"]
[null,"Supply and delivery of CISCO LAN Infrastructure equipment with CISCO support for a period of five (5) years for the Western Cape Government (WCG), Department of Health and Wellness (Acute Psychiatric units and Emergency Centres)",{"$nulls":5}," "]
["1 Access Layer Switches"]
["1.0","C9200L-24P-4X-E","Catalyst 9200L 24-port PoE+, 4 x 10G, Network Essentials",null,{"v":0,"d":"0%"},27,0,{"$f":"F22*G22","v":0},{"$f":"E22*H22","v":0}]
["1.0.1","CON-L1NCD-C920024X","CX LEVEL 1 8X7NCDCatalyst 9200L 24port PoE 4 x 10G Ne",null,{"v":0,"d":"0%"},27,0,{"$f":"F23*G23","v":0},{"$f":"E23*H23","v":0}]
["1.1","C9200L-DNA-E-24","C9200L Cisco DNA Essentials, 24-port Term license",null,{"v":0,"d":"0%"},27,0,0,0]
["1.1.0.1","CON-L1SWT-C92LE24","CX LEVEL 1 SW SUB C9200L Cisco DNA Ess",null,{"v":0,"d":"0%"},27,0,0,0]
["1.1.1","C9200L-DNA-E-24-5Y","C9200L Cisco DNA Essentials, 24-port, 5 Year Term license",null,{"v":0,"d":"0%"},27,0,0,0]
["1.2","C9200L-NW-E-24","C9200L Network Essentials, 24-port license",null,{"v":0,"d":"0%"},27,0,0,0]
["1.3","CAB-TA-IN","India AC Type A Power Cable",null,{"v":0,"d":"0%"},27,0,0,0]
["1.4","PWR-C5-BLANK","Config 5 Power Supply Blank",null,{"v":0,"d":"0%"},27,0,0,0]
["1.5","C9200-STACK-BLANK","Catalyst 9200 Blank Stack Module",null,{"v":0,"d":"0%"},54,0,0,0]
["1.6","C9K-ACC-RBFT","RUBBER FEET FOR TABLE TOP SETUP 9200 and 93xx",null,{"v":0,"d":"0%"},27,0,0,0]
["1.7","C9K-ACC-SCR-4","12-24 and 10-32 SCREWS FOR RACK INSTALLATION, QTY 4",null,{"v":0,"d":"0%"},27,0,0,0]
["1.8","CAB-GUIDE-1RU","1RU CABLE MANAGEMENT GUIDES 9200 and 9300",null,{"v":0,"d":"0%"},27,0,0,0]
["1.9","NETWORK-PNP-LIC","Network Plug-n-Play Connect for zero-touch device deployment",null,{"v":0,"d":"0%"},27,0,0,0]
["1.10","CAB-CONSOLE-USB","Console Cable 6ft with USB Type A and mini-B",null,{"v":0,"d":"0%"},27,0,0,0]
["2.0","C9200L-48P-4X-E","Catalyst 9200L 48-port PoE+, 4 x 10G, Network Essentials",null,{"v":0,"d":"0%"},25,0,0,0]
["2.0.1","CON-L1NCD-C9200L4X","CX LEVEL 1 8X7NCDCatalyst 9200L 48port PoE 4 x 10G Ne",null,{"v":0,"d":"0%"},25,0,0,0]
["2.1","C9200L-DNA-E-48","C9200L Cisco DNA Essentials, 48-port Term license",null,{"v":0,"d":"0%"},25,0,0,0]
["2.1.0.1","CON-L1SWT-C92LE48","CX LEVEL 1 SW SUB C9200L Cisco DNA Ess",null,{"v":0,"d":"0%"},25,0,0,0]
["2.1.1","C9200L-DNA-E-48-5Y","C9200L Cisco DNA Essentials, 48-port, 5 Year Term license",null,{"v":0,"d":"0%"},25,0,0,0]
["2.2","C9200L-NW-E-48","C9200L Network Essentials, 48-port license",null,{"v":0,"d":"0%"},25,0,0,0]
["2.3","CAB-TA-IN","India AC Type A Power Cable",null,{"v":0,"d":"0%"},25,0,0,0]
["2.4","CAB-CONSOLE-USB","Console Cable 6ft with USB Type A and mini-B",null,{"v":0,"d":"0%"},25,0,0,0]
["2.5","PWR-C5-BLANK","Config 5 Power Supply Blank",null,{"v":0,"d":"0%"},25,0,0,0]
["2.6","C9200-STACK-BLANK","Catalyst 9200 Blank Stack Module",null,{"v":0,"d":"0%"},50,0,0,0]
["2.7","C9K-ACC-RBFT","RUBBER FEET FOR TABLE TOP SETUP 9200 and 93xx",null,{"v":0,"d":"0%"},25,0,0,0]
["2.8","C9K-ACC-SCR-4","12-24 and 10-32 SCREWS FOR RACK INSTALLATION, QTY 4",null,{"v":0,"d":"0%"},25,0,0,0]
["2.9","CAB-GUIDE-1RU","1RU CABLE MANAGEMENT GUIDES 9200 and 9300",null,{"v":0,"d":"0%"},25,0,0,0]
["2.10","NETWORK-PNP-LIC","Network Plug-n-Play Connect for zero-touch device deployment",null,{"v":0,"d":"0%"},25,0,0,0]
["3.0","CW9164I-ROW","Catalyst 9164I AP (W6E, tri-band 4x4) w/Reg-ROW",null,{"v":0,"d":"0%"},53,0,0,0]
["3.0.1","CON-L1NCD-CW9164RW","CX LEVEL 1 8X7NCD Catalyst 9164I AP (W6E, tri-band 4x4) w",null,{"v":0,"d":"0%"},53,0,0,0]
["3.1","CDNA-E-C9164","Wireless Cisco DNA  On-Prem Essential, 9164 Tracking",null,{"v":0,"d":"0%"},53,0,0,0]
["3.1.1","DNA-E-5Y-C9164","C9164I Cisco DNA On-Prem Essential,5Y Term,Trk Lic",null,{"v":0,"d":"0%"},53,0,0,0]
["3.2","AIR-DNA-E","Wireless Cisco DNA On-Prem Essential, Term Lic",null,{"v":0,"d":"0%"},53,0,0,0]
["3.2.0.1","CON-L1SWT-AIRDNAE","CX LEVEL 1 SW SUB Aironet CISCO DNA Es",null,{"v":0,"d":"0%"},53,0,0,0]
["3.2.1","AIR-DNA-E-5Y","Wireless Cisco DNA On-Prem Essential, 5Y Term Lic",null,{"v":0,"d":"0%"},53,0,0,0]
["3.3","AIR-DNA-E-T","Wireless Cisco DNA On-Prem Essential, Term, Tracker Lic",null,{"v":0,"d":"0%"},53,0,0,0]
["3.3.1","AIR-DNA-E-T-5Y","Wireless Cisco DNA On-Prem Essential, 5Y Term, Tracker Lic",null,{"v":0,"d":"0%"},53,0,0,0]
["3.4","SW9164-CAPWAP-K9","Capwap software for Catalyst 9164I",null,{"v":0,"d":"0%"},53,0,0,0]
["3.5","AIR-AP-T-RAIL-R","Ceiling Grid Clip for APs & Cellular Gateways-Recessed",null,{"v":0,"d":"0%"},53,0,0,0]
["3.6","AIR-AP-BRACKET-1","802.11 AP Low Profile Mounting Bracket (Default)",null,{"v":0,"d":"0%"},53,0,0,0]
["3.7","AIR-DNA-NWSTACK-E","Wireless DNA Perpetual Network Stack - Essentials",null,{"v":0,"d":"0%"},53,0,0,0]
["3.8","NETWORK-PNP-LIC","Network Plug-n-Play Connect for zero-touch device deployment",null,{"v":0,"d":"0%"},53,0,0,0]
["3.9","CW9164I-MULTI","Minimum Quantity = 10",null,{"v":0,"d":"0%"},53,0,0,0]
[null,"TOTAL BID PRICE  (EXCL VAT)",{"$nulls":5},{"$f":"SUBTOTAL(9,H20:H64)","v":0},{"$f":"SUBTOTAL(9,I20:I64)","v":0}]
[null,"VAT (@15%)",{"$nulls":5},{"$f":"H65*0.15","v":0}]
[null,"TOTAL  BID PRICE (INCL VAT)",{"$nulls":5},{"$f":"H65+H66","v":0}]
[]
[]
[null,"I, the bidder, confirm that the price(s) and rate(s) quoted cover all the goods and/or works specified in the bidding documents; that the price(s) or rate(s) cover all my obligations and I accept that any mistakes regarding price(s), rate(s) or calculations will be at my own risk.\n[Note: First convert to PDF, then add signature]"]
[{"$nulls":3},"Name",null,"Capacity"]
[]
[{"$nulls":3},"Signature (above)",null,"Date"]